fUSD/lending_fUSD_20251215
["ID","MTS","AMOUNT","RATE_DAILY","PERIOD"]
[398561017,1765827930315,-500.0,0.00042161,120]
[398561018,1765827930359,-811.66,0.00042161,120]
[398561019,1765827930403,-360.27889966,0.00042161,120]
[398561020,1765827930450,-683.69,0.00042161,120]
[398561021,1765827930496,-625.13,0.00042161,120]
[398561022,1765827930543,-1042.86,0.00042161,120]
[398561023,1765827930587,-818.74,0.00042161,120]
[398561024,1765827930631,-500.0,0.00042161,120]
[398561025,1765827930675,-811.66,0.00042161,120]
[398561026,1765827930719,-683.71348516,0.00042161,120]
[398561027,1765827930761,-625.13,0.00042161,120]
[398561028,1765827930804,-1042.86,0.00042161,120]
[398561029,1765827930846,-818.74168143,0.00042161,120]
[398561030,1765827930892,-500.0,0.00042161,120]
[398561031,1765827930938,-4089.01,0.00042161,120]
[398561032,1765827930981,-811.66,0.00042161,120]
[398561033,1765827931026,-500.0,0.00042161,120]
[398561034,1765827931072,-1042.86,0.00042161,120]
[398561035,1765827931119,-500.0,0.00042161,120]
[398561036,1765827931166,-4089.01,0.00042161,120]
[398561037,1765827931210,-625.13,0.00042161,120]
[398561038,1765827931255,-500.0,0.00042161,120]
[398561039,1765827931298,-811.66,0.00042161,120]
[398561040,1765827931339,-1042.86,0.00042161,120]
[398561041,1765827931384,-4089.01,0.00042161,120]
[398561042,1765827931426,-500.0,0.00042161,120]
[398561043,1765827931467,-500.0,0.00042161,120]
[398561044,1765827931510,-625.13,0.00042161,120]
[398561045,1765827931553,-811.66,0.00042161,120]
[398561046,1765827931596,-1042.86,0.00042161,120]
[398561047,1765827931639,-4089.01,0.00042161,120]
[398561048,1765827931680,-500.0,0.00042161,120]
[398561049,1765827931723,-500.0,0.00042161,120]
[398561050,1765827931767,-625.13,0.00042161,120]
[398561051,1765827931809,-811.66,0.00042161,120]
[398561052,1765827931853,-1042.94731716,0.00042161,120]
[398561053,1765827931895,-500.0,0.00042161,120]
[398561054,1765827931939,-285.44916616,0.00042161,120]
[398561081,1765827971410,-175.0,0.00022893,120]
[398561082,1765827971463,-2001.0,0.0002295,120]
[398561083,1765827971514,-1200.0,0.0002295,120]
[398561084,1765827971561,-720.0,0.0002295,120]
[398561085,1765827971608,-432.0,0.0002295,120]
[398561086,1765827971653,-259.0,0.0002295,120]
[398561087,1765827971696,-173.0,0.0002295,120]
[398561088,1765827971739,-174.0,0.0002295,120]
[398561089,1765827971782,-175.0,0.0002295,120]
[398561090,1765827971826,-476.0,0.0002315,120]
[398561091,1765827971867,-286.0,0.0002315,120]
[398561092,1765827971911,-793.0,0.00023232,120]
[398561093,1765827971953,-3831.15477555,0.000235,30]
[398561094,1765827971996,-495.0,0.00023503,120]
[398561095,1765827972038,-175.0,0.00023503,120]
[398561096,1765827972080,-203.0,0.00023518,120]
[398561097,1765827972126,-2001.0,0.00024098,120]
[398561098,1765827972174,-1200.0,0.00024098,120]
[398561099,1765827972227,-720.0,0.00024098,120]
[398561100,1765827972276,-432.0,0.00024098,120]
[398561101,1765827972325,-259.0,0.00024098,120]
[398561102,1765827972371,-173.0,0.00024098,120]
[398561103,1765827972416,-174.0,0.00024098,120]
[398561104,1765827972464,-476.0,0.00024307,120]
[398561105,1765827972508,-286.0,0.00024308,120]
[398561106,1765827972553,-793.0,0.00024394,120]
[398561107,1765827972600,-304.04945475,0.000246,120]
[398561108,1765827972654,-1315.4,0.00024658,30]
[398561109,1765827972706,-495.0,0.00024678,120]
[398561110,1765827972755,-175.0,0.00024678,120]
[398561111,1765827972801,-203.0,0.00024694,120]
[398561112,1765827972871,-2543.01645534,0.00025,30]
[398561113,1765827972922,-5319.72294685,0.00025,30]
[398561114,1765827972971,-1101.07213895,0.00025,60]
[398561115,1765827973017,-480.0,0.00025,30]
[398561116,1765827973058,-480.0,0.00025,30]
[398561117,1765827973101,-481.25235646,0.00025,30]
[398561118,1765827973150,-515.171016,0.00025499,120]
[398561119,1765827973195,-286.0,0.00025523,120]
[398561120,1765827973240,-175.0,0.00025912,120]
[398561121,1765827973282,-150.0,0.00026271,120]
[398561122,1765827973325,-288.0,0.00027,120]
[398561123,1765827973372,-200.0,0.000274,120]
[398561124,1765827973421,-150.0,0.00027493,120]
[398561125,1765827973467,-300.0,0.00028,120]
[398561126,1765827973508,-776.0,0.00028,40]
[398561127,1765827973553,-1202.20701964,0.00028767,120]
[398561128,1765827973598,-208.0,0.0002882,30]
[398561129,1765827973645,-229.12806492,0.00028875,120]
[398561130,1765827974163,-150.0,0.00028931,120]
[398561131,1765827974225,-160.06720814,0.00029046,30]
[398561132,1765827974279,-150.0,0.00029371,120]
[398561133,1765827974330,-1315.4,0.00029492,30]
[398561134,1765827974381,-4720.81970034,0.000295,120]
[398561135,1765827974434,-150.0,0.00029776,120]
[398561136,1765827974484,-150.0,0.00029815,120]
[398561137,1765827974536,-5040.0,0.000299,30]
[398561138,1765827974582,-200.0,0.00029925,120]
[398561139,1765827974630,-150.0,0.00029952,120]
[398561140,1765827974677,-250.0,0.0002999,30]
[398561141,1765827974723,-250.0,0.0002999,30]
[398561142,1765827974769,-837.5076657,0.0003,30]
[398561143,1765827974815,-679.87304448,0.0003,30]
[398561144,1765827974863,-500.0,0.0003,120]
[398561145,1765827974914,-220.29187635,0.0003,120]
[398561146,1765827974964,-165.53215614,0.0003,30]
[398561147,1765827975014,-1108.934041,0.0003,120]
[398561148,1765827975064,-481.25235646,0.0003,120]
[398561149,1765827975117,-692.59,0.0003,120]
[398561150,1765827975168,-692.59,0.00030029,120]
[398561151,1765827975221,-692.59,0.00030059,120]
[398561152,1765827975275,-692.59,0.0003009,120]
[398561153,1765827975328,-692.59,0.00030123,120]
[398561154,1765827975381,-692.59,0.00030158,120]
[398561155,1765827975437,-692.59,0.00030196,120]
[398561156,1765827975493,-1424.52,0.000302,30]
[398561157,1765827975545,-692.59,0.00030235,120]
[398561158,1765827975594,-692.59,0.00030278,120]
[398561159,1765827975653,-692.59,0.00030323,120]
[398561160,1765827975705,-692.59,0.00030373,120]
[398561161,1765827975759,-692.59,0.00030426,120]
[398561162,1765827975813,-150.0,0.00030461,120]
[398561163,1765827975878,-692.59,0.00030485,120]
[398561164,1765827975928,-692.59,0.00030549,120]
[398561165,1765827975977,-692.59,0.00030622,120]
[398561166,1765827976025,-692.59,0.00030704,120]
[398561167,1765827976074,-692.59,0.00030799,120]
[398561168,1765827976120,-208.0,0.0003084,30]
[398561169,1765827976167,-150.0,0.00030875,120]
[398561170,1765827976224,-692.59,0.00030911,120]
[398561171,1765827976275,-1424.52,0.00031,30]
[398561172,1765827976323,-150.0,0.00031,120]
[398561173,1765827976375,-692.59,0.00031048,120]
[398561174,1765827976424,-394.16,0.000312,120]
[398561175,1765827976474,-150.0,0.00031265,120]
[398561176,1765827976522,-200.0,0.000314,120]
[398561177,1765827976571,-161.86,0.00031507,120]
[398561178,1765827976619,-4000.0,0.00031507,60]
[398561179,1765827976665,-2000.0,0.00031507,30]
[398561182,1765827976711,-2000.0,0.00031507,30]
[398561183,1765827976762,-1424.52,0.00032,30]
[398561184,1765827976806,-500.0,0.00032,120]
[398561186,1765827976851,-1000.0,0.00032,120]
[398561187,1765827976899,-208.0,0.0003286,30]
[398561189,1765827976944,-2000.0,0.0003287,30]
[398561190,1765827976990,-2000.0,0.0003287,30]
[398561191,1765827977045,-151.0,0.00032877,31]
[398561192,1765827977093,-151.0,0.00032877,31]
[398561194,1765827977142,-210.768313,0.00032877,31]
[398561195,1765827977190,-253.797542,0.00032877,31]
[398561196,1765827977239,-253.797542,0.00032877,31]
[398561197,1765827977286,-253.797542,0.00032877,31]
[398561198,1765827977331,-253.797542,0.00032877,31]
[398561199,1765827977378,-253.797542,0.00032877,31]
[398561200,1765827977427,-253.797542,0.00032877,31]
[398561201,1765827977475,-253.797542,0.00032877,31]
[398561202,1765827977522,-253.797542,0.00032877,31]
[398561203,1765827977569,-253.797542,0.00032877,31]
[398561204,1765827977617,-253.797542,0.00032877,31]
[398561205,1765827977664,-253.797542,0.00032877,31]
[398561206,1765827977710,-253.797542,0.00032877,31]
[398561207,1765827977759,-253.797542,0.00032877,31]
[398561208,1765827977804,-253.797542,0.00032877,31]
[398561209,1765827977848,-253.797542,0.00032877,31]
[398561210,1765827977898,-253.797542,0.00032877,31]
[398561211,1765827977945,-253.797542,0.00032877,31]
[398561212,1765827977992,-253.797542,0.00032877,31]
[398561213,1765827978040,-253.797542,0.00032877,31]
[398561214,1765827978088,-253.797533,0.00032877,31]
[398561215,1765827978137,-1424.52,0.000329,30]
[398561216,1765827978185,-150.0,0.00032956,120]
[398561217,1765827978232,-250.0,0.00033,120]
[398561218,1765827978276,-194.0,0.00033,120]
[398561219,1765827978320,-1739.4,0.00033,90]
[398561220,1765827978366,-501.0,0.00033,35]
[398561221,1765827978416,-419.6,0.00033,120]
[398561222,1765827978464,-5000.0,0.000333,60]
[398561223,1765827978511,-2000.0,0.00033425,120]
[398561224,1765827978558,-7329.51,0.00033438,120]
[398561225,1765827978609,-1424.52,0.000339,30]
[398561226,1765827978660,-2000.0,0.00033973,120]
[398561227,1765827978707,-500.0,0.00034,120]
[398561228,1765827979657,-1000.0,0.00034,120]
[398561229,1765827979704,-499.0,0.00034,37]
[398561230,1765827979748,-199.0,0.00034246,30]
[398561231,1765827979789,-1315.4,0.00034327,30]
[398561232,1765827979833,-150.0,0.00034506,120]
[398561233,1765827979875,-2000.0,0.00034521,120]
[398561234,1765827979918,-200.0,0.0003465,120]
[398561235,1765827979961,-1444.0,0.00034849,120]
[398561236,1765827980003,-211.8920409,0.0003488,120]
[398561237,1765827980048,-208.0,0.0003488,30]
[398561238,1765827980093,-199.0,0.00034931,31]
[398561239,1765827980140,-500.0,0.0003494,30]
[398561240,1765827980187,-500.0,0.0003494,30]
[398561241,1765827980234,-1424.52,0.00035,30]
[398561242,1765827980283,-1500.0,0.00035,30]
[398561243,1765827980325,-500.0,0.00035,46]
[398561244,1765827980368,-189.3,0.00035,120]
[398561245,1765827980411,-772.0,0.00035,120]
[398561246,1765827980459,-2000.0,0.00035068,120]
[398561247,1765827980506,-150.0,0.00035478,120]
[398561248,1765827980551,-1706.6,0.000355,30]
[398561249,1765827980594,-175.33423601,0.00035616,112]
[398561250,1765827980637,-270.0,0.00035616,97]
[398561251,1765827980683,-2000.0,0.00035616,30]
[398561252,1765827980727,-173.85348983,0.00035616,113]
[398561253,1765827980772,-337.8,0.00035616,34]
[398561254,1765827980817,-2000.0,0.00035616,120]
[398561255,1765827980860,-304.54246668,0.00035616,59]
[398561256,1765827980904,-199.0,0.00035616,32]
[398561257,1765827980947,-745.82,0.000358,30]
[398561258,1765827980992,-2000.0,0.0003589,120]
[398561259,1765827981049,-1745.12826053,0.00036,60]
[398561260,1765827981099,-1153.27,0.00036,30]
[398561261,1765827981146,-2000.0,0.00036,36]
[398561262,1765827981193,-500.0,0.00036,120]
[398561263,1765827981239,-500.0,0.00036,50]
[398561264,1765827981288,-209.0,0.00036,30]
[398561265,1765827981334,-2000.0,0.00036164,120]
[398561266,1765827981380,-2000.0,0.00036164,120]
[398561267,1765827981427,-2000.0,0.00036164,120]
[398561268,1765827981475,-199.0,0.00036301,33]
[398561269,1765827981522,-2000.0,0.00036438,120]
[398561270,1765827981568,-209.0,0.00036464,30]
[398561271,1765827981616,-1822.67167784,0.000365,30]
[398561272,1765827981663,-2000.0,0.00036712,120]
[398561273,1765827981715,-2000.0,0.00036712,120]
[398561274,1765827981764,-2000.0,0.00036712,120]
[398561275,1765827981811,-1153.27,0.0003672,30]
[398561276,1765827981858,-216.66725917,0.00036724,120]
[398561277,1765827981907,-215.39289732,0.00036724,120]
[398561278,1765827981953,-215.39289731,0.00036724,120]
[398561279,1765827981999,-161.86,0.00036758,120]
[398561280,1765827982047,-8095.50475939,0.00036888,60]
[398561281,1765827982095,-208.0,0.0003689,30]
[398561282,1765827982144,-500.0,0.0003696,120]
[398561283,1765827982191,-500.0,0.0003696,120]
[398561284,1765827982239,-500.0,0.0003696,120]
[398561285,1765827982286,-600.0,0.0003696,120]
[398561286,1765827982334,-2000.0,0.00036986,120]
[398561287,1765827982380,-151.1022388,0.00036986,119]
[398561288,1765827982430,-199.0,0.00036986,34]
[398561289,1765827982477,-2000.0,0.00037,30]
[398561290,1765827982524,-286.0,0.00037,120]
[398561291,1765827982572,-2000.0,0.00037,30]
[398561292,1765827982620,-10933.1567357,0.00037,30]
[398561293,1765827982668,-12071.93334687,0.00037,30]
[398561294,1765827982715,-500.0,0.00037,55]
[398561295,1765827982761,-150.0,0.00037,120]
[398561296,1765827982806,-150.0,0.00037,30]
[398561297,1765827982852,-2000.0,0.0003726,120]
[398561298,1765827982898,-2000.0,0.0003726,120]
[398561299,1765827982943,-2000.0,0.0003726,120]
[398561300,1765827982989,-2000.0,0.000375,30]
[398561301,1765827983036,-500.0,0.000375,120]
[398561302,1765827983085,-2000.0,0.00037534,120]
[398561303,1765827983135,-7329.51,0.00037547,120]
[398561304,1765827983181,-199.0,0.00037671,35]
[398561305,1765827983228,-2000.0,0.00037808,120]
[398561306,1765827983274,-2000.0,0.00037808,120]
[398561307,1765827983321,-2000.0,0.00037808,120]
[398561308,1765827983370,-188.67,0.00037808,60]
[398561309,1765827983420,-188.68,0.00037839,80]
[398561310,1765827983468,-188.67,0.00037869,100]
[398561311,1765827983516,-188.68,0.000379,120]
[398561312,1765827983590,-209.0,0.00038,30]
[398561313,1765827983640,-5328.0,0.00038,30]
[398561314,1765827983692,-1006.56,0.00038,30]
[398561315,1765827983742,-2000.0,0.00038,38]
[398561316,1765827983790,-500.0,0.00038,120]
[398561317,1765827983836,-2000.0,0.00038,30]
[398561318,1765827983885,-50000.0,0.00038,60]
[398561319,1765827983934,-500.03171203,0.00038,60]
[398561320,1765827984563,-1003.53901403,0.00038,120]
[398561321,1765827984610,-250.0,0.00038,120]
[398561322,1765827984659,-872.67888566,0.00038,30]
[398561323,1765827984705,-2000.0,0.00038082,120]
[398561324,1765827984750,-1045.60825,0.000381,120]
[398561325,1765827984797,-500.0,0.00038356,120]
[398561326,1765827984841,-500.0,0.00038356,120]
[398561327,1765827984887,-161.1923191,0.00038356,120]
[398561328,1765827984931,-500.0,0.00038356,120]
[398561329,1765827984975,-500.0,0.00038356,120]
[398561330,1765827985021,-507.72738807,0.00038356,120]
[398561331,1765827985067,-580.55052672,0.00038356,120]
[398561332,1765827985114,-500.0,0.00038356,120]
[398561333,1765827985160,-505.30706383,0.00038356,120]
[398561334,1765827985206,-504.89891981,0.00038356,120]
[398561335,1765827985252,-1493.21,0.00038356,30]
[398561336,1765827985299,-1493.21,0.00038356,30]
[398561337,1765827985346,-1493.21,0.00038356,30]
[398561338,1765827985393,-1493.21,0.00038356,30]
[398561339,1765827985438,-1493.21,0.00038356,30]
[398561340,1765827985484,-1493.21,0.00038356,30]
[398561341,1765827985529,-1493.21,0.00038356,30]
[398561342,1765827985575,-1493.21,0.00038356,30]
[398561343,1765827985622,-1493.21,0.00038356,30]
[398561344,1765827985668,-1493.21,0.00038356,30]
[398561345,1765827985714,-1493.21,0.00038356,30]
[398561346,1765827985758,-1493.21,0.00038356,30]
[398561347,1765827985802,-1493.21,0.00038356,30]
[398561348,1765827985847,-1493.21,0.00038356,30]
[398561349,1765827985893,-1493.21,0.00038356,30]
[398561350,1765827985939,-1493.21,0.00038356,30]
[398561351,1765827985984,-1493.21,0.00038356,30]
[398561352,1765827986031,-1493.21,0.00038356,30]
[398561353,1765827986078,-1493.21,0.00038356,30]
[398561354,1765827986124,-1493.21,0.00038356,30]
[398561355,1765827986171,-1493.21,0.00038356,30]
[398561356,1765827986217,-1493.21,0.00038356,30]
[398561357,1765827986261,-1493.21,0.00038356,30]
[398561358,1765827986305,-1493.217446,0.00038356,30]
[398561359,1765827986348,-2000.0,0.00038356,120]
[398561360,1765827986392,-2000.0,0.00038356,120]
[398561361,1765827986435,-2000.0,0.00038356,120]
[398561362,1765827986477,-306.23076699,0.00038356,120]
[398561363,1765827986526,-152.334526,0.00038356,120]
[398561364,1765827986570,-151.0,0.00038356,90]
[398561365,1765827986622,-199.0,0.00038356,36]
[398561366,1765827986667,-500.0,0.00038356,60]
[398561367,1765827986712,-1242.803144,0.00038356,120]
[398561368,1765827986755,-1242.803144,0.00038356,120]
[398561369,1765827986794,-1242.803144,0.00038356,120]
[398561370,1765827986836,-1242.803144,0.00038356,120]
[398561371,1765827986878,-500.0,0.00038493,60]
[398561372,1765827986920,-2000.0,0.000385,30]
[398561373,1765827986961,-1631.33,0.000386,120]
[398561374,1765827987003,-150.0,0.0003861,30]
[398561375,1765827987046,-150.0,0.0003861,30]
[398561376,1765827987091,-500.0,0.0003863,60]
[398561377,1765827987139,-150.0,0.00038652,120]
[398561378,1765827987185,-500.0,0.00038767,60]
[398561379,1765827987230,-224.0,0.00038767,33]
[398561380,1765827987275,-273.0,0.00038767,33]
[398561381,1765827987319,-335.28,0.00038767,33]
[398561382,1765827987364,-24000.0,0.000388,120]
[398561383,1765827987410,-151.0,0.000388,120]
[398561384,1765827987456,-151.0,0.000388,120]
[398561385,1765827987500,-151.0,0.000388,120]
[398561386,1765827987542,-151.0,0.000388,120]
[398561387,1765827987583,-151.0,0.000388,120]
[398561388,1765827987625,-151.0,0.000388,120]
[398561389,1765827987667,-1242.803144,0.000388,120]
[398561390,1765827987708,-1242.803144,0.000388,120]
[398561391,1765827987751,-1242.803144,0.000388,120]
[398561392,1765827987793,-151.0,0.000388,120]
[398561393,1765827987837,-1242.803144,0.000388,120]
[398561394,1765827987882,-157.261992,0.000388,120]
[398561395,1765827987927,-151.0,0.000388,120]
[398561396,1765827987971,-151.0,0.000388,120]
[398561397,1765827988016,-151.0,0.000388,60]
[398561398,1765827988062,-151.0,0.000388,120]
[398561399,1765827988105,-182.063889,0.000388,120]
[398561400,1765827988148,-171.572676,0.000388,120]
[398561401,1765827988192,-182.063889,0.000388,120]
[398561402,1765827988236,-151.0,0.000388,120]
[398561403,1765827988282,-171.572676,0.000388,120]
[398561404,1765827988327,-182.063889,0.000388,120]
[398561405,1765827988373,-151.0,0.000388,120]
[398561406,1765827988418,-171.572676,0.000388,120]
[398561407,1765827988466,-182.063889,0.000388,120]
[398561408,1765827988510,-239.677425,0.000388,120]
[398561409,1765827988559,-171.572676,0.000388,120]
[398561410,1765827988604,-151.0,0.000388,120]
[398561411,1765827988653,-151.0,0.000388,120]
[398561412,1765827988698,-151.0,0.000388,120]
[398561413,1765827989217,-151.0,0.000388,30]
[398561414,1765827989267,-151.0,0.000388,30]
[398561415,1765827989316,-151.0,0.000388,120]
[398561416,1765827989362,-151.0,0.000388,120]
[398561417,1765827989408,-483.3125,0.00038888,30]
[398561418,1765827989457,-1895.18625691,0.000389,120]
[398561419,1765827989502,-391.61603861,0.000389,31]
[398561420,1765827989548,-500.0,0.00038904,60]
[398561421,1765827989593,-2000.0,0.00038904,120]
[398561422,1765827989639,-226.642329,0.00038904,60]
[398561423,1765827989682,-226.642329,0.00038904,60]
[398561424,1765827989724,-226.642329,0.00038904,60]
[398561425,1765827989765,-226.642329,0.00038904,60]
[398561426,1765827989807,-226.642329,0.00038904,60]
[398561427,1765827989849,-226.642329,0.00038904,60]
[398561428,1765827989892,-226.642329,0.00038904,60]
[398561429,1765827989935,-226.642329,0.00038904,60]
[398561430,1765827989980,-226.642329,0.00038904,60]
[398561431,1765827990024,-226.642329,0.00038904,60]
[398561432,1765827990068,-226.642329,0.00038904,60]
[398561433,1765827990116,-226.642329,0.00038904,60]
[398561434,1765827990162,-226.642329,0.00038904,60]
[398561435,1765827990208,-226.642329,0.00038904,60]
[398561436,1765827990253,-226.642329,0.00038904,60]
[398561437,1765827990297,-226.642329,0.00038904,60]
[398561438,1765827990340,-226.642329,0.00038904,60]
[398561439,1765827990382,-226.642329,0.00038904,60]
[398561440,1765827990428,-226.642329,0.00038904,60]
[398561441,1765827990472,-226.642324,0.00038904,60]
[398561442,1765827990514,-208.0,0.0003891,30]
[398561443,1765827990556,-2000.0,0.00039,39]
[398561444,1765827990599,-1023.44965652,0.00039,120]
[398561445,1765827990643,-958.0,0.00039,30]
[398561446,1765827990685,-1000.0,0.00039,120]
[398561447,1765827990728,-1250.65590979,0.00039,120]
[398561448,1765827990773,-2000.0,0.00039,30]
[398561449,1765827990818,-50000.0,0.00039,55]
[398561450,1765827990862,-333.79445964,0.00039,120]
[398561451,1765827990909,-500.0,0.00039,61]
[398561452,1765827990954,-262.11701102,0.00039,120]
[398561453,1765827990996,-4163.77565425,0.00039,85]
[398561454,1765827991040,-500.0,0.00039041,60]
[398561455,1765827991082,-199.0,0.00039041,37]
[398561456,1765827991128,-4357.166987,0.00039041,120]
[398561457,1765827991173,-4357.166987,0.00039041,120]
[398561458,1765827991218,-4357.166987,0.00039041,120]
[398561459,1765827991262,-4357.166987,0.00039041,120]
[398561460,1765827991305,-4357.166987,0.00039041,120]
[398561461,1765827991348,-4357.166987,0.00039041,120]
[398561462,1765827991390,-4357.166987,0.00039041,120]
[398561463,1765827991433,-4357.166987,0.00039041,120]
[398561464,1765827991476,-4357.166987,0.00039041,120]
[398561465,1765827991518,-4357.166987,0.00039041,120]
[398561466,1765827991561,-4357.166987,0.00039041,120]
[398561467,1765827991605,-4357.166987,0.00039041,120]
[398561468,1765827991651,-4357.166987,0.00039041,120]
[398561469,1765827991695,-4357.166987,0.00039041,120]
[398561470,1765827991742,-4357.166987,0.00039041,120]
[398561471,1765827991790,-4357.166987,0.00039041,120]
[398561472,1765827991837,-4357.166987,0.00039041,120]
[398561473,1765827991881,-4357.166987,0.00039041,120]
[398561474,1765827991925,-4357.166987,0.00039041,120]
[398561475,1765827991970,-4357.166991,0.00039041,120]
[398561476,1765827992012,-1315.4,0.00039162,120]
[398561477,1765827992058,-500.0,0.00039178,60]
[398561478,1765827992102,-465.02075424,0.0003919,120]
[398561479,1765827992145,-2000.0,0.000392,120]
[398561480,1765827992189,-2000.0,0.000392,120]
[398561481,1765827992233,-2000.0,0.000392,120]
[398561482,1765827992277,-2000.0,0.000392,120]
[398561483,1765827992320,-2000.0,0.000392,120]
[398561484,1765827992362,-707.0,0.000392,120]
[398561485,1765827992402,-500.0,0.00039315,60]
[398561486,1765827992444,-150.18036782,0.00039421,30]
[398561487,1765827992484,-500.0,0.00039452,60]
[398561488,1765827992525,-2000.0,0.00039452,120]
[398561489,1765827992564,-2000.0,0.000395,30]
[398561490,1765827992604,-1000.0,0.000395,120]
[398561491,1765827992646,-2882.63270872,0.000395,90]
[398561492,1765827992689,-500.0,0.00039589,60]
[398561493,1765827992732,-500.0,0.000396,120]
[398561494,1765827992773,-500.0,0.000396,120]
[398561495,1765827992814,-500.0,0.000396,120]
[398561496,1765827992854,-500.0,0.000396,120]
[398561497,1765827992896,-150.0,0.00039696,120]
[398561498,1765827992938,-500.0,0.00039726,60]
[398561499,1765827992980,-199.0,0.00039726,38]
[398561500,1765827993023,-1058.0,0.00039726,120]
[398561501,1765827993069,-339.461279,0.000398,120]
[398561502,1765827993114,-1000.0,0.000398,120]
[398561503,1765827993158,-1264.52373922,0.000398,120]
[398561504,1765827993203,-227.91,0.00039807,120]
[398561505,1765827993249,-152.35,0.00039807,120]
[398561506,1765827993724,-500.0,0.00039863,60]
[398561507,1765827993770,-19405.68490858,0.0003988,30]
[398561508,1765827993814,-212.0,0.000399,90]
[398561509,1765827993858,-1299.3355387,0.000399,120]
[398561510,1765827993904,-3133.26534463,0.000399,30]
[398561511,1765827993950,-172.50877669,0.000399,120]
[398561512,1765827993994,-172.50877669,0.000399,120]
[398561513,1765827994039,-172.50877669,0.000399,120]
[398561514,1765827994086,-227.91,0.00039907,120]
[398561515,1765827994134,-500.0,0.0003992,30]
[398561516,1765827994181,-500.0,0.0003992,30]
[398561517,1765827994232,-50000.0,0.0004,40]
[398561518,1765827994278,-500.0,0.0004,60]
[398561519,1765827994323,-1198.59593836,0.0004,120]
[398561520,1765827994368,-1310.09925473,0.0004,120]
[398561521,1765827994416,-2070.64442201,0.0004,120]
[398561522,1765827994471,-1507.32165354,0.0004,120]
[398561523,1765827994517,-1529.10977167,0.0004,120]
[398561524,1765827994562,-1506.81921916,0.0004,120]
[398561525,1765827994608,-1484.50606045,0.0004,120]
[398561526,1765827994656,-1118.0,0.0004,120]
[398561527,1765827994701,-1137.15786443,0.0004,60]
[398561528,1765827994745,-1557.21474277,0.0004,120]
[398561529,1765827994789,-1857.07240375,0.0004,120]
[398561530,1765827994831,-2000.0,0.0004,60]
[398561531,1765827994879,-200.0,0.0004,120]
[398561532,1765827994924,-150.0,0.0004,120]
[398561533,1765827994969,-2000.0,0.0004,120]
[398561534,1765827995015,-1650.0,0.0004,30]
[398561535,1765827995059,-2013.43833238,0.0004,30]
[398561536,1765827995105,-2000.0,0.0004,60]
[398561537,1765827995159,-1000.0,0.0004,120]
[398561538,1765827995205,-1000.0,0.0004,120]
[398561539,1765827995254,-500.0,0.0004,120]
[398561540,1765827995302,-249.0,0.0004,120]
[398561541,1765827995350,-1000.0,0.0004,120]
[398561542,1765827995396,-2000.0,0.0004,120]
[398561543,1765827995440,-2000.0,0.0004,120]
[398561544,1765827995485,-2000.0,0.0004,120]
[398561545,1765827995532,-2000.0,0.0004,120]
[398561546,1765827995577,-2000.0,0.0004,120]
[398561547,1765827995623,-2000.0,0.0004,120]